[Event "AUT-ch U14 Boys 2022"]
[Site "Sankt Veit an der Glan"]
[Date "2022.04.12"]
[Round "4.7"]
[White "Standhartinger, Joachim"]
[Black "Wohlgenannt, Nicolas"]
[Result "1-0"]
[ECO "B10"]
[WhiteElo "1729"]
[BlackElo "1692"]
[Annotator "NA RC"]
[PlyCount "119"]
[EventDate "2022.04.11"]
[EventType "swiss"]
[EventCountry "AUT"]
[SourceTitle "playchess.com"]
[Source "ChessBase"]
[SourceQuality "1"]
[TimeControl "5400+30"]

1. e4 {[%emt 0:00:04]} c6 {[%emt 0:00:06]} 2. c4 {[%emt 0:00:04]} d5 {[%emt 0:00:08]} 3. cxd5 {[%emt 0:00:15]} cxd5 {[%emt 0:00:27]} 4. exd5 {[%emt 0:00:21]} Qxd5 {[%emt 0:00:27]} 5. Nc3 {[%emt 0:00:33]} Qa5 {[%emt 0:01:11]} 6. Nf3 {[%emt 0:03:33]} Nf6 {[%emt 0:02:08]} 7. d4 {[%emt 0:02:51]} Bg4 {[%emt 0:01:32]} 8. Bd2 {[%emt 0:09:38]} Qb6 {[%emt 0:06:07]} 9. Rc1 {[%emt 0:09:19]} Nc6 {[%emt 0:06:36]} 10. Be3 {[%emt 0:19:39]} Qa5 {[%emt 0:09:09]} 11. Qb3 {[%emt 0:09:51]} Bxf3 {[%emt 0:12:55]} 12. gxf3 {[%emt 0:01:14]} Qb4 {[%emt 0:00:16]} 13. Qxb4 {[%emt 0:14:23]} Nxb4 {[%emt 0:00:08]} 14. Bb5+ {[%emt 0:00:14]} Kd8 {[%emt 0:03:22]} 15. Ke2 {[%emt 0:10:31]} e6 {[%emt 0:03:19]} 16. Na4 {[%emt 0:04:58]} Bd6 {[%emt 0:08:26]} 17. Nc5 {[%emt 0:01:44]} b6 {[%emt 0:06:22]} 18. Nb7+ {[%emt 0:01:28]} Ke7 {[%emt 0:00:05]} 19. Nxd6 {[%emt 0:00:44]} Kxd6 {[%emt 0:00:11]} 20. Bf4+ {[%emt 0:00:34]} Ke7 {[%emt 0:04:14]} 21. Rc7+ {[%emt 0:00:11]} Kd8 {[%emt 0:07:46]} 22. Rxf7 {[%emt 0:00:54]} Nbd5 {[%emt 0:06:18]} 23. Bg5 {[%emt 0:00:37]} a6 {[%emt 0:02:04]} 24. Bc6 {[%emt 0:04:43]} Rc8 {[%emt 0:00:25]} 25. Rc1 {[%emt 0:01:01]} Ne7 {[%emt 0:02:06]} 26. Bb7 {[%emt 0:01:37]} Rxc1 {[%emt 0:02:14]} 27. Bxc1 {[%emt 0:00:10]} Nf5 {[%emt 0:02:04]} 28. Bg5 {[%emt 0:02:08]} Nxd4+ {[%emt 0:03:06]} 29. Kd3 {[%emt 0:00:13]} Nf5 {[%emt 0:01:16]} 30. Rxf6 {[%emt 0:00:39]} gxf6 {[%emt 0:00:21]} 31. Bxf6+ {[%emt 0:00:05]} Kc7 {[%emt 0:00:02]} 32. Bxh8 {[%emt 0:00:09]} Kxb7 {[%emt 0:00:04]} 33. Ke4 {[%emt 0:00:58]} Kc6 {[%emt 0:01:43]} 34. Ke5 {[%emt 0:01:11]} Kd7 {[%emt 0:02:01]} 35. Kf6 {[%emt 0:00:39]} Kd6 {[%emt 0:03:39]} 36. Kf7 {[%emt 0:00:12]} e5 {[%emt 0:02:34]} 37. Kg8 {[%emt 0:00:25]} h5 {[%emt 0:00:22]} 38. Kf7 {[%emt 0:00:54]} Nh4 {[%emt 0:00:29]} 39. Kf6 {[%emt 0:00:36]} Nxf3 {[%emt 0:00:38]} 40. Kf5 {[%emt 0:00:14]} Kd5 {[%emt 0:00:39]} 41. h3 {[%emt 0:00:37]} Kd4 {[%emt 0:03:27]} 42. Kg6 {[%emt 0:00:10]} h4 {[%emt 0:00:12]} 43. Kf5 {[%emt 0:00:14]} Kd3 {[%emt 0:00:50]} 44. Bxe5 {[%emt 0:00:32]} Ke2 {[%emt 0:00:08]} 45. Bc7 {[%emt 0:00:22]} Kxf2 {[%emt 0:00:31]} 46. Bxb6+ {[%emt 0:00:11]} Kg3 {[%emt 0:00:11]} 47. a4 {[%emt 0:01:33]} Nd2 {[%emt 0:00:34]} 48. b4 {[%emt 0:00:33]} Nc4 {[%emt 0:00:25]} 49. Bc7+ {[%emt 0:00:17]} Kxh3 {[%emt 0:00:07]} 50. Kg5 {[%emt 0:00:23]} Nb2 {[%emt 0:00:22]} 51. a5 {[%emt 0:00:43]} Nc4 {[%emt 0:01:41]} 52. b5 {[%emt 0:00:17]} Nxa5 {[%emt 0:00:15]} 53. bxa6 {[%emt 0:00:34]} Nc6 {[%emt 0:00:06]} 54. Kf6 {[%emt 0:00:26]} Kg4 {[%emt 0:00:18]} 55. Ke6 {[%emt 0:00:14]} Na7 {[%emt 0:01:03]} 56. Kd5 {[%emt 0:00:11]} h3 {[%emt 0:00:20]} 57. Kc5 {[%emt 0:00:08]} Kf5 {[%emt 0:00:52]} 58. Kb6 {[%emt 0:00:17]} Ke6 {[%emt 0:00:35]} 59. Kxa7 {[%emt 0:00:21]} Kd7 {[%emt 0:00:03]} 60. Kb7 {[%emt 0:00:09]} 1-0

[Event "AUT-ch U14 Boys 2022"]
[Site "Sankt Veit an der Glan"]
[Date "2022.04.12"]
[Round "4.9"]
[White "Winkelbauer, Christian"]
[Black "Gan-Erdene, Ganbat"]
[Result "1-0"]
[ECO "A13"]
[WhiteElo "1577"]
[BlackElo "1526"]
[Annotator "NA RC"]
[PlyCount "98"]
[EventDate "2022.04.11"]
[EventType "swiss"]
[EventCountry "AUT"]
[SourceTitle "playchess.com"]
[Source "ChessBase"]
[SourceQuality "1"]
[TimeControl "5400+30"]

1. c4 {[%emt 0:00:02]} e6 {[%emt 0:00:05]} 2. Nc3 {[%emt 0:00:23]} d5 {[%emt 0:00:08]} 3. cxd5 {[%emt 0:00:38]} exd5 {[%emt 0:00:07]} 4. g3 {[%emt 0:00:54]} Nf6 {[%emt 0:00:28]} 5. Bg2 {[%emt 0:00:34]} Be7 {[%emt 0:01:26]} 6. Nf3 {[%emt 0:01:33]} O-O {[%emt 0:01:40]} 7. d3 {[%emt 0:01:42]} c6 {[%emt 0:02:38]} 8. e3 {[%emt 0:04:05]} Bf5 {[%emt 0:03:43]} 9. O-O {[%emt 0:01:28]} Nbd7 {[%emt 0:02:12]} 10. d4 {[%emt 0:03:57]} h6 {[%emt 0:04:18]} 11. a3 {[%emt 0:07:30]} a5 {[%emt 0:04:54]} 12. Na2 {[%emt 0:09:11]} Qb6 {[%emt 0:03:15]} 13. Nc3 {[%emt 0:09:04]} Ra6 {[%emt 0:15:07]} 14. b3 {[%emt 0:06:38]} Qa7 {[%emt 0:01:53]} 15. Re1 {[%emt 0:03:51]} b5 {[%emt 0:02:18]} 16. Bf1 {[%emt 0:00:32]} Rb6 {[%emt 0:01:33]} 17. Bb2 {[%emt 0:02:30]} Rfb8 {[%emt 0:12:21]} 18. h3 {[%emt 0:06:28]} Bh7 {[%emt 0:19:22]} 19. Ne2 {[%emt 0:09:28]} Ne4 {[%emt 0:07:13]} 20. Nd2 {[%emt 0:07:11]} Ndf6 {[%emt 0:01:20]} 21. Nxe4 {[%emt 0:03:02]} Bxe4 {[%emt 0:01:27]} 22. Nf4 {[%emt 0:02:05]} Qc7 {[%emt 0:01:58]} 23. Rc1 {[%emt 0:01:57]} g5 {[%emt 0:02:24]} 24. Nd3 {[%emt 0:03:09]} Bd6 {[%emt 0:01:14]} 25. f4 {[%emt 0:02:11]} Kh8 {[%emt 0:02:22]} 26. Nc5 {[%emt 0:01:48]} Rg8 {[%emt 0:01:01]} 27. Kh2 {[%emt 0:01:44]} gxf4 {[%emt 0:01:40]} 28. exf4 {[%emt 0:01:27]} Bxf4 {[%emt 0:02:10]} 29. Nxe4 {[%emt 0:01:50]} Nxe4 {[%emt 0:02:02]} 30. Rxe4 {[%emt 0:00:55]} Bxg3+ {[%emt 0:02:31]} 31. Kh1 {[%emt 0:00:01]} dxe4 {[%emt 0:00:28]} 32. d5+ {[%emt 0:00:01]} Kh7 {[%emt 0:00:16]} 33. Qd4 {[%emt 0:01:35]} Bh4 {[%emt 0:00:41]} 34. Qxe4+ {[%emt 0:00:28]} Rg6 {[%emt 0:00:19]} 35. Qe8 {[%emt 0:01:13]} Rb8 {[%emt 0:00:40]} 36. Rxc6 {[%emt 0:00:58]} Rxe8 {[%emt 0:00:23]} 37. Rxc7 {[%emt 0:00:03]} Kg8 {[%emt 0:00:38]} 38. Bc3 {[%emt 0:01:43]} Bf2 {[%emt 0:00:15]} 39. Bxb5 {[%emt 0:01:25]} Rd8 {[%emt 0:00:51]} 40. Rb7 {[%emt 0:01:59]} Bh4 {[%emt 0:00:31]} 41. Bc4 {[%emt 0:00:36]} Bf6 {[%emt 0:00:20]} 42. Bxa5 {[%emt 0:00:55]} Rf8 {[%emt 0:00:38]} 43. Bb4 {[%emt 0:00:17]} Rd8 {[%emt 0:00:24]} 44. d6 {[%emt 0:00:11]} Bd4 {[%emt 0:00:38]} 45. Bxf7+ {[%emt 0:00:07]} Kg7 {[%emt 0:00:15]} 46. Bxg6+ {[%emt 0:00:04]} Kxg6 {[%emt 0:00:10]} 47. d7 {[%emt 0:00:36]} Kf7 {[%emt 0:00:33]} 48. Ba5 {[%emt 0:00:10]} Bf6 {[%emt 0:00:51]} 49. Bxd8 {[%emt 0:00:17]} Bxd8 {[%emt 0:00:05]} 1-0

[Event "AUT-ch U14 Boys 2022"]
[Site "Sankt Veit an der Glan"]
[Date "2022.04.12"]
[Round "4.10"]
[White "Guba, Viktor"]
[Black "Beliavsky, Alexander G"]
[Result "1/2-1/2"]
[ECO "C55"]
[WhiteElo "1598"]
[BlackElo "2518"]
[Annotator "RC"]
[PlyCount "82"]
[EventDate "2022.04.11"]
[EventType "swiss"]
[EventCountry "AUT"]
[SourceTitle "playchess.com"]
[Source "ChessBase"]
[SourceQuality "1"]
[TimeControl "5400+30"]

1. e4 {[%emt 0:00:05]} e5 {[%emt 0:00:03]} 2. Nf3 {[%emt 0:00:19]} Nc6 {[%emt 0:00:05]} 3. d4 {[%emt 0:00:29]} exd4 {[%emt 0:00:06]} 4. Bc4 {[%emt 0:00:24]} Nf6 {[%emt 0:00:14]} 5. e5 {[%emt 0:01:03]} d5 {[%emt 0:00:29]} 6. Bb5 {[%emt 0:00:53]} Ne4 {[%emt 0:02:12]} 7. Nxd4 {[%emt 0:01:11]} Bd7 {[%emt 0:00:13]} 8. Bxc6 {[%emt 0:01:15]} bxc6 {[%emt 0:00:09]} 9. O-O {[%emt 0:01:09]} Bc5 {[%emt 0:00:08]} 10. Be3 {[%emt 0:01:21]} Qe7 {[%emt 0:05:40]} 11. f3 {[%emt 0:03:21]} Nd6 {[%emt 0:05:32]} 12. Re1 {[%emt 0:18:54]} Nc4 {[%emt 0:28:16]} 13. b3 {[%emt 0:09:50]} Nxe3 {[%emt 0:03:40]} 14. Rxe3 {[%emt 0:00:13]} O-O {[%emt 0:04:13]} 15. c3 {[%emt 0:10:31]} Bb6 {[%emt 0:11:35]} 16. b4 {[%emt 0:07:01]} c5 {[%emt 0:11:10]} 17. bxc5 {[%emt 0:00:48]} Bxc5 {[%emt 0:01:50]} 18. Nd2 {[%emt 0:01:39]} Rfe8 {[%emt 0:06:13]} 19. N2b3 {[%emt 0:02:24]} Bb6 {[%emt 0:00:23]} 20. Kh1 {[%emt 0:02:42]} c5 {[%emt 0:05:26]} 21. Nc2 {[%emt 0:01:14]} Rad8 {[%emt 0:02:01]} 22. Qe2 {[%emt 0:02:24]} Ba4 {[%emt 0:01:40]} 23. Rd1 {[%emt 0:04:25]} Bxb3 {[%emt 0:01:32]} 24. axb3 {[%emt 0:00:15]} c4 {[%emt 0:00:55]} 25. Nd4 {[%emt 0:00:15]} cxb3 {[%emt 0:00:57]} 26. Red3 {[%emt 0:05:12]} Bxd4 {[%emt 0:01:54]} 27. cxd4 {[%emt 0:00:07]} Rb8 {[%emt 0:00:32]} 28. Qb2 {[%emt 0:00:25]} Qb4 {[%emt 0:00:32]} 29. Rb1 {[%emt 0:00:21]} Rec8 {[%emt 0:00:19]} 30. h3 {[%emt 0:00:18]} Qc4 {[%emt 0:01:33]} 31. Rxb3 {[%emt 0:00:49]} Rxb3 {[%emt 0:00:17]} 32. Qxb3 {[%emt 0:00:04]} Qxd4 {[%emt 0:01:14]} 33. Qb7 {[%emt 0:01:48]} Re8 {[%emt 0:00:34]} 34. Qe7 {[%emt 0:00:25]} Rf8 {[%emt 0:01:43]} 35. Rb7 {[%emt 0:00:07]} Qe3 {[%emt 0:01:18]} 36. Rd7 {[%emt 0:01:31]} Qc1+ {[%emt 0:00:54]} 37. Kh2 {[%emt 0:00:20]} Qf4+ {[%emt 0:00:16]} 38. Kg1 {[%emt 0:00:05]} Qe3+ {[%emt 0:01:31]} 39. Kf1 {[%emt 0:00:05]} Qd3+ {[%emt 0:00:06]} 40. Kf2 {[%emt 0:00:37]} Qc2+ {[%emt 0:00:18]} 41. Kg3 Qg6+ 1/2-1/2

[Event "AUT-ch U14 Boys 2022"]
[Site "Sankt Veit an der Glan"]
[Date "2022.04.12"]
[Round "4.12"]
[White "McKenna, Jason P"]
[Black "Kienboeck, Samuel"]
[Result "1/2-1/2"]
[ECO "C55"]
[WhiteElo "2089"]
[BlackElo "1068"]
[Annotator "RC"]
[PlyCount "111"]
[EventDate "2022.04.11"]
[EventType "swiss"]
[EventCountry "AUT"]
[SourceTitle "playchess.com"]
[Source "ChessBase"]
[SourceQuality "1"]
[TimeControl "5400+30"]

1. e4 {[%emt 0:00:03]} e5 {[%emt 0:00:35]} 2. Nf3 {[%emt 0:00:07]} Nc6 {[%emt 0:00:15]} 3. Bc4 {[%emt 0:00:16]} Nf6 {[%emt 0:00:17]} 4. d3 {[%emt 0:02:33]} h6 {[%emt 0:00:27]} 5. b3 {[%emt 0:03:48]} d5 {[%emt 0:02:21]} 6. Bxd5 {[%emt 0:07:46]} Nxd5 {[%emt 0:00:30]} 7. exd5 {[%emt 0:00:07]} Qxd5 {[%emt 0:00:07]} 8. Nc3 {[%emt 0:02:53]} Bb4 {[%emt 0:00:54]} 9. Bd2 {[%emt 0:04:22]} Qa5 {[%emt 0:02:48]} 10. Ne4 {[%emt 0:03:26]} Bg4 {[%emt 0:07:05]} 11. c3 {[%emt 0:04:04]} Bd6 {[%emt 0:01:14]} 12. O-O {[%emt 0:07:02]} f5 {[%emt 0:03:37]} 13. Ng3 {[%emt 0:05:25]} e4 {[%emt 0:02:34]} 14. dxe4 {[%emt 0:03:50]} Bxg3 {[%emt 0:02:21]} 15. fxg3 {[%emt 0:05:38]} fxe4 {[%emt 0:03:17]} 16. Qe2 {[%emt 0:04:23]} O-O-O {[%emt 0:01:09]} 17. Qxe4 {[%emt 0:23:30]} Bxf3 {[%emt 0:00:32]} 18. Rxf3 {[%emt 0:00:41]} Rxd2 {[%emt 0:00:09]} 19. Qg4+ {[%emt 0:01:09]} Kb8 {[%emt 0:02:16]} 20. Qxg7 {[%emt 0:01:29]} Rhd8 {[%emt 0:02:15]} 21. Raf1 {[%emt 0:06:22]} Qxa2 {[%emt 0:00:52]} 22. R3f2 Rxf2 23. Rxf2 {[%emt 0:01:50]} Rd1+ {[%emt 0:00:54]} 24. Rf1 {[%emt 0:00:24]} Rxf1+ {[%emt 0:00:07]} 25. Kxf1 {[%emt 0:00:14]} Qb1+ {[%emt 0:01:14]} 26. Kf2 {[%emt 0:01:13]} Qc2+ {[%emt 0:00:28]} 27. Kf1 {[%emt 0:01:46]} Kc8 {[%emt 0:00:13]} 28. Qg4+ {[%emt 0:01:29]} Kd8 {[%emt 0:00:22]} 29. Qh4+ {[%emt 0:01:00]} Kd7 {[%emt 0:00:13]} 30. Qg4+ {[%emt 0:00:16]} Kd6 {[%emt 0:00:11]} 31. Qf4+ {[%emt 0:00:33]} Ke6 {[%emt 0:00:20]} 32. Qxh6+ {[%emt 0:01:34]} Ke5 {[%emt 0:00:12]} 33. Qf4+ {[%emt 0:00:40]} Ke6 {[%emt 0:01:17]} 34. Qh6+ {[%emt 0:01:06]} Kd7 {[%emt 0:00:13]} 35. Qh3+ {[%emt 0:01:19]} Ke7 {[%emt 0:00:09]} 36. Qh4+ {[%emt 0:00:20]} Kf7 {[%emt 0:01:40]} 37. Qf4+ {[%emt 0:00:37]} Kg7 {[%emt 0:00:07]} 38. Qxc7+ {[%emt 0:00:35]} Kf6 {[%emt 0:00:16]} 39. Qd6+ {[%emt 0:00:23]} Kf7 {[%emt 0:01:11]} 40. Qf4+ {[%emt 0:00:31]} Ke6 {[%emt 0:00:14]} 41. Qh6+ {[%emt 0:01:18]} Kd7 {[%emt 0:00:15]} 42. Qg7+ {[%emt 0:00:43]} Kd6 {[%emt 0:00:20]} 43. Qf6+ {[%emt 0:00:49]} Kc7 {[%emt 0:00:15]} 44. Qf4+ {[%emt 0:00:54]} Kb6 {[%emt 0:00:17]} 45. Qe3+ {[%emt 0:00:25]} Ka6 {[%emt 0:00:16]} 46. Qe2+ {[%emt 0:01:29]} Qxe2+ {[%emt 0:01:36]} 47. Kxe2 {[%emt 0:00:01]} Ne5 {[%emt 0:00:44]} 48. h4 {[%emt 0:01:03]} Kb5 {[%emt 0:02:08]} 49. h5 {[%emt 0:01:48]} Kc6 {[%emt 0:01:43]} 50. h6 {[%emt 0:00:50]} Kd5 {[%emt 0:01:41]} 51. h7 {[%emt 0:00:43]} Ng6 {[%emt 0:00:23]} 52. Ke3 {[%emt 0:00:49]} Ke5 {[%emt 0:01:04]} 53. g4 {[%emt 0:00:48]} b5 {[%emt 0:04:28]} 54. b4 {[%emt 0:00:27]} Kd5 {[%emt 0:00:35]} 55. Kd3 {[%emt 0:00:32]} a6 {[%emt 0:02:55]} 56. g5 {[%emt 0:00:30]} 1/2-1/2

[Event "AUT-ch U14 Boys 2022"]
[Site "Sankt Veit an der Glan"]
[Date "2022.04.12"]
[Round "5.1"]
[White "Wimmer, Michael"]
[Black "Ernst, Robert"]
[Result "0-1"]
[ECO "B47"]
[WhiteElo "1753"]
[BlackElo "1792"]
[Annotator "NA RC"]
[PlyCount "90"]
[EventDate "2022.04.11"]
[EventType "swiss"]
[EventCountry "AUT"]
[SourceTitle "playchess.com"]
[Source "ChessBase"]
[SourceQuality "1"]
[TimeControl "5400+30"]

1. e4 {[%emt 0:00:05]} c5 {[%emt 0:00:06]} 2. Nf3 {[%emt 0:00:13]} e6 {[%emt 0:00:07]} 3. d4 {[%emt 0:00:17]} cxd4 {[%emt 0:00:08]} 4. Nxd4 {[%emt 0:00:09]} Nc6 {[%emt 0:00:06]} 5. Nc3 {[%emt 0:00:20]} Qc7 {[%emt 0:00:09]} 6. a3 {[%emt 0:00:31]} a6 {[%emt 0:01:43]} 7. Be3 {[%emt 0:00:26]} Nf6 {[%emt 0:00:36]} 8. f4 {[%emt 0:00:37]} d6 {[%emt 0:12:44]} 9. Be2 {[%emt 0:00:30]} Be7 {[%emt 0:00:53]} 10. O-O {[%emt 0:00:26]} O-O {[%emt 0:00:36]} 11. Kh1 {[%emt 0:00:33]} Nxd4 {[%emt 0:02:20]} 12. Bxd4 {[%emt 0:01:23]} e5 {[%emt 0:11:31]} 13. Be3 {[%emt 0:10:53]} Be6 {[%emt 0:01:04]} 14. f5 {[%emt 0:07:59]} Bd7 {[%emt 0:00:13]} 15. g4 {[%emt 0:07:24]} Bc6 {[%emt 0:01:47]} 16. Bf3 {[%emt 0:01:53]} h6 {[%emt 0:01:32]} 17. h4 {[%emt 0:10:25]} Nh7 {[%emt 0:05:55]} 18. Qe1 {[%emt 0:02:01]} b5 {[%emt 0:03:25]} 19. Qg3 {[%emt 0:03:47]} Qd8 {[%emt 0:00:27]} 20. g5 {[%emt 0:08:40]} hxg5 {[%emt 0:01:06]} 21. hxg5 {[%emt 0:00:15]} Bxg5 {[%emt 0:00:37]} 22. Rg1 {[%emt 0:00:32]} f6 {[%emt 0:03:03]} 23. Rg2 {[%emt 0:04:53]} Kf7 {[%emt 0:04:11]} 24. Bh5+ {[%emt 0:08:34]} Ke7 {[%emt 0:00:14]} 25. Rh2 {[%emt 0:05:37]} Rh8 {[%emt 0:12:24]} 26. Rd1 {[%emt 0:01:50]} Qc8 {[%emt 0:06:27]} 27. Kg2 {[%emt 0:05:59]} Qxf5 {[%emt 0:05:27]} 28. Bg4 {[%emt 0:02:49]} Bxe4+ {[%emt 0:00:35]} 29. Nxe4 {[%emt 0:01:32]} Qxe4+ {[%emt 0:00:11]} 30. Qf3 {[%emt 0:00:49]} Qxf3+ {[%emt 0:03:06]} 31. Bxf3 {[%emt 0:00:39]} Rac8 {[%emt 0:00:22]} 32. Be4 {[%emt 0:01:03]} Bxe3 {[%emt 0:00:28]} 33. Rxh7 {[%emt 0:00:45]} Rxh7 {[%emt 0:00:05]} 34. Bxh7 {[%emt 0:00:08]} Bf4 {[%emt 0:01:17]} 35. Bf5 {[%emt 0:01:39]} Rh8 {[%emt 0:00:20]} 36. Bh3 {[%emt 0:00:27]} g6 {[%emt 0:00:26]} 37. c3 {[%emt 0:00:30]} f5 {[%emt 0:00:09]} 38. Rd3 {[%emt 0:02:06]} Bc1 {[%emt 0:01:10]} 39. c4 {[%emt 0:00:34]} bxc4 {[%emt 0:00:31]} 40. Rc3 {[%emt 0:00:22]} Bxb2 {[%emt 0:00:21]} 41. Rxc4 {[%emt 0:00:10]} Bxa3 {[%emt 0:00:18]} 42. Ra4 {[%emt 0:00:15]} Bc5 {[%emt 0:00:07]} 43. Rxa6 {[%emt 0:00:24]} Kf6 {[%emt 0:00:12]} 44. Kg3 {[%emt 0:01:04]} g5 {[%emt 0:00:44]} 45. Bf1 {[%emt 0:00:43]} Rh1 {[%emt 0:00:27]} 0-1

[Event "AUT-ch U14 Boys 2022"]
[Site "Sankt Veit an der Glan"]
[Date "2022.04.12"]
[Round "5.2"]
[White "Nguyen, Le Minh Phu"]
[Black "Geroe, Leonhard"]
[Result "1-0"]
[ECO "D31"]
[WhiteElo "2080"]
[BlackElo "1935"]
[Annotator "TA"]
[PlyCount "77"]
[EventDate "2022.04.11"]
[EventType "swiss"]
[EventCountry "AUT"]
[SourceTitle "playchess.com"]
[Source "ChessBase"]
[SourceQuality "1"]
[TimeControl "5400+30"]

{[%evp 14,77,34,27,40,23,34,18,19,31,42,55,42,42,56,0,6,14,89,61,159,159,159,165,160,112,123,132,181,176,154,136,191,207,258,258,247,239,308,210,216,218,277,268,274,275,311,241,310,252,246,237,484,477,870,860,5497,777,683,601,557,422,557,541,552,524]} 1. d4 {[%emt 0:00:03]} d5 {[%emt 0:00:31]} 2. c4 {[%emt 0:00:05]} c6 {[%emt 0:00:19]} 3. Nc3 {[%emt 0:00:05]} e6 {[%emt 0:01:00]} 4. Bf4 {[%emt 0:00:16]} Nf6 {[%emt 0:01:18]} 5. e3 {[%emt 0:00:20]} Nbd7 {[%emt 0:03:30]} 6. Nf3 {[%emt 0:02:30]} Be7 {[%emt 0:01:49]} 7. Bd3 {[%emt 0:00:13]} dxc4 {[%emt 0:01:50]} 8. Bxc4 {[%emt 0:00:08]} b5 {[%emt 0:00:09] D37: Queen's Gambit Declined: 5 Bf4.} 9. Bd3 {[%emt 0:00:13]} Bb7 {[%emt 0:10:54]} 10. O-O {[%emt 0:01:03]} a6 {[%emt 0:01:56] The position is equal.} 11. a4 {[%emt 0:04:37]} b4 {[%emt 0:02:24]} 12. Ne4 {[%emt 0:04:01]} Nxe4 {[%emt 0:01:51]} 13. Bxe4 {[%emt 0:00:09]} Nf6 {[%emt 0:01:02] [#]} 14. Qc2 $146 {[%emt 0:00:54]} (14. Nd2 $14) ({Predecessor:} 14. Bd3 O-O 15. Rc1 Rc8 16. Qe2 a5 17. Rfd1 Nd5 18. Bg3 c5 19. dxc5 Bxc5 20. Bc4 {½-½ (54) Linart,L (1742)-Dogan,A (1704) LSS email 2016}) 14... Nxe4 $11 {[%emt 0:01:17]} 15. Qxe4 {[%emt 0:00:05]} Qb6 {[%emt 0:06:26]} (15... Rc8 $11 {remains equal.}) 16. Rac1 Qa7 {[%emt 0:14:14]} ({Black should try} 16... O-O $14) 17. Qe5 $16 {[%emt 0:08:13]} O-O {[%emt 0:02:56][%cal Oc6c5]} 18. Bg5 {[%emt 0:00:07]} Bd8 {[%emt 0:06:46]} 19. Rc4 {[%emt 0:04:40] 0x0.00299f40aea5dp-1022s more active pieces. The black rooks are badly placed.} (19. Bxd8 $142 Rfxd8 20. Qa5) 19... a5 {[%emt 0:07:19]} 20. Rfc1 {[%emt 0:00:10]} Rc8 {[%emt 0:04:37]} (20... Qb6 $16 21. Qe4 c5 22. dxc5 Qc6 23. Qxc6 Bxc6) 21. Bxd8 $18 {[%emt 0:02:59]} Rfxd8 {[%emt 0:00:42]} 22. Qc5 {[%emt 0:00:06] Inhibits Qb6.} Qa8 {[%emt 0:02:47]} (22... Qxc5 $16 23. Rxc5 Ra8) 23. Qb6 {[%emt 0:00:41]} c5 {[%emt 0:10:11]} 24. Rxc5 {[%emt 0:00:11]} Bxf3 {[%emt 0:01:41]} 25. gxf3 {[%emt 0:00:08] Rxc8 is the strong threat.} Rb8 {[%emt 0:01:36]} 26. Qc6 {[%emt 0:00:08]} (26. Qxa5 Qxf3 27. Qc7 g6 $16) 26... Qxc6 {[%emt 0:00:40]} 27. Rxc6 {[%emt 0:00:08][%mdl 4096] Endgame KRR-KRR} Rd5 {[%emt 0:01:31]} 28. Ra6 {[%emt 0:00:10]} ({Much less strong is} 28. Rc8+ $6 Rd8 29. R8c7 g6 $18) 28... Rbd8 {[%emt 0:04:27]} 29. Kg2 {[%emt 0:00:19]} g5 {[%emt 0:01:36]} 30. Rc7 {[%emt 0:00:50]} e5 {[%emt 0:01:12]} 31. dxe5 {[%emt 0:01:03]} Rxe5 {[%emt 0:00:34]} 32. Rf6 {[%emt 0:00:29]} Rd2 $2 {[%emt 0:01:16] [#]} (32... Rf8 33. Ra7 Rc5) 33. Rfxf7 {[%emt 0:00:10] White is clearly winning.} Rxb2 {[%emt 0:00:21]} (33... Rxe3 $142 34. Rg7+ (34. Rxh7 Ree2 $18) 34... Kh8 35. Rxh7+ Kg8 36. Rcg7+ Kf8) 34. Rg7+ {[%emt 0:00:06]} Kf8 {[%emt 0:00:08]} 35. Rxh7 {[%emt 0:00:08]} (35. Rcf7+ $142 Ke8 36. Rxh7) 35... Kg8 {[%emt 0:00:36]} 36. Rhd7 {[%emt 0:00:05] [#] White threatens Rc8+ and mate.} Re8 {[%emt 0:00:36] Inhibits Rc8.} 37. Rd5 {[%emt 0:00:09]} b3 {[%emt 0:00:26]} 38. Rb7 {[%emt 0:00:21]} Kh8 {[%emt 0:01:20]} 39. Rxa5 {[%emt 0:00:16] Weighted Error Value: White=0.28 (precise) /Black=0.46} 1-0

[Event "AUT-ch U14 Boys 2022"]
[Site "Sankt Veit an der Glan"]
[Date "2022.04.12"]
[Round "5.3"]
[White "Leitgeb, Julian"]
[Black "Haselsberger, Armin"]
[Result "1/2-1/2"]
[ECO "B12"]
[WhiteElo "2004"]
[BlackElo "1541"]
[Annotator "RC"]
[PlyCount "72"]
[EventDate "2022.04.11"]
[EventType "swiss"]
[EventCountry "AUT"]
[SourceTitle "playchess.com"]
[Source "ChessBase"]
[SourceQuality "1"]
[TimeControl "5400+30"]

1. e4 {[%emt 0:00:03]} c6 {[%emt 0:00:39]} 2. d4 {[%emt 0:00:03]} d5 {[%emt 0:00:38]} 3. e5 {[%emt 0:00:06]} Bf5 {[%emt 0:00:43]} 4. h4 {[%emt 0:00:06]} h5 {[%emt 0:00:47]} 5. Bd3 {[%emt 0:00:07]} Bxd3 {[%emt 0:01:01]} 6. Qxd3 {[%emt 0:00:03]} Qa5+ {[%emt 0:00:39]} 7. Nd2 {[%emt 0:00:15]} e6 {[%emt 0:01:07]} 8. Ngf3 {[%emt 0:00:44]} Nh6 {[%emt 0:01:35]} 9. O-O {[%emt 0:01:26]} Nf5 {[%emt 0:01:34]} 10. Nb3 {[%emt 0:00:48]} Qa6 {[%emt 0:07:55]} 11. Qd1 {[%emt 0:00:37]} Be7 {[%emt 0:03:53]} 12. g3 {[%emt 0:05:08]} Nd7 {[%emt 0:06:59]} 13. Bg5 {[%emt 0:04:37]} Bxg5 {[%emt 0:06:31]} 14. Nxg5 {[%emt 0:00:09]} Rc8 {[%emt 0:02:37]} 15. c3 {[%emt 0:14:24]} g6 {[%emt 0:04:48]} 16. Kg2 {[%emt 0:04:44]} Ke7 {[%emt 0:06:30]} 17. Qd2 {[%emt 0:03:17]} b6 {[%emt 0:03:03]} 18. Nf3 {[%emt 0:12:54]} Rcg8 {[%emt 0:09:01]} 19. Qg5+ {[%emt 0:02:33]} Ke8 {[%emt 0:00:43]} 20. a4 {[%emt 0:05:19]} c5 {[%emt 0:12:46]} 21. a5 {[%emt 0:11:39]} c4 {[%emt 0:05:51]} 22. axb6 {[%emt 0:00:38]} Qxb6 {[%emt 0:00:08]} 23. Nbd2 {[%emt 0:01:17]} Kf8 {[%emt 0:01:32]} 24. Ra2 {[%emt 0:01:46]} Kg7 {[%emt 0:00:38]} 25. Rfa1 {[%emt 0:00:56]} Ra8 {[%emt 0:00:31]} 26. Nf1 {[%emt 0:01:37]} Rhe8 {[%emt 0:05:00]} 27. Ne3 {[%emt 0:02:49]} Nxe3+ {[%emt 0:00:40]} 28. fxe3 {[%emt 0:01:23]} a5 {[%emt 0:03:13]} 29. Nd2 {[%emt 0:04:56]} Qb7 {[%emt 0:01:04]} 30. Rf1 {[%emt 0:02:37]} a4 {[%emt 0:01:31]} 31. Qf4 {[%emt 0:01:01]} Rf8 {[%emt 0:01:33]} 32. Qg5 {[%emt 0:03:34]} Qc8 {[%emt 0:00:58]} 33. Qe7 {[%emt 0:02:37]} Qd8 {[%emt 0:00:58]} 34. Qd6 {[%emt 0:00:26]} Ra7 {[%emt 0:01:29]} 35. Rfa1 {[%emt 0:02:53]} Qb6 {[%emt 0:00:27]} 36. Qxb6 {[%emt 0:01:11]} Nxb6 {[%emt 0:00:02]} 1/2-1/2